Cogmind - Beta 16 @@@ ROGUE MODE // 2025.11.01 @ 06:16:28 Player: time Result: Destroyed by G-34 Mercenary with Small Laser Performance ------------- Evolutions (0) 0 Regions Visited (2) 400 Robots Destroyed (17) 85 Value Destroyed (279) 279 Prototype IDs (0) 0 Alien Tech Used (0) 0 Bonus (0) 0 TOTAL SCORE: 764 Bonus ------- None Cogmind --------- Core Integrity 0/250 Matter 221/300 Energy 265/265 System Corruption 1% Temperature Cool (29) Movement Walking (120) Location -10/Mines Parts ------- > --- POWER (1) -------- Improved Ion Engine > --- PROPULSION (2) --- Aluminum Leg Aluminum Leg > --- UTILITY (2) ------ Small Storage Unit Seismic Detector > --- WEAPON (2) ------- Medium Laser Grenade Launcher > --- INVENTORY (8) ---- Improved Ion Engine Improved Ion Engine Light Treads Light Treads Aluminum Leg Aluminum Leg Medium Armor Plating Rocket Launcher Peak State ------------ > --- POWER ------------ Improved Ion Engine > --- PROPULSION ------- Wheel Compact Wheel > --- UTILITY ---------- Small Storage Unit Seismic Detector > --- WEAPON ----------- Medium Laser Assault Rifle > --- INVENTORY -------- Ion Engine Ion Engine Light Treads Light Treads Wheel Medium Armor Plating Medium Laser Rocket Launcher [Rating: 9] Favorites ----------- Power Improved Ion Engine Engine Improved Ion Engine Propulsion Wheel Treads Light Treads Leg Aluminum Leg Wheel Wheel Utility Small Storage Unit Device Seismic Detector Storage Small Storage Unit Weapon Medium Laser Energy Gun Medium Laser Ballistic Gun Assault Rifle Launcher Grenade Launcher Build | -11 -10 -10 ------- Run | Yrd Mat Min Slots Evolved . | . . . Power . | . . . Propulsion . | . . . Utility . | . . . Weapon . | . . . Parts Attached 14 | 8 6 . Power 2 | 1 1 . Engine 2 | 1 1 . Core . | . . . Reactor . | . . . Propulsion 6 | 2 4 . Treads 2 | . 2 . Leg 2 | . 2 . Wheel 2 | 2 . . Hover . | . . . Flight . | . . . Utility 2 | 2 . . Device 1 | 1 . . Storage 1 | 1 . . Processor . | . . . Hackware . | . . . Protection . | . . . Artifact . | . . . Weapon 4 | 3 1 . Energy Gun 2 | 2 . . Energy Cannon . | . . . Ballistic Gun 1 | 1 . . Ballistic Cannon . | . . . Launcher 1 | . 1 . Special Weapon . | . . . Impact Weapon . | . . . Slashing Weapon . | . . . Piercing Weapon . | . . . Special Melee Weapon . | . . . Unidentified Prototypes . | . . . Parts Lost 4 | . 4 . Power . | . . . Propulsion 2 | . 2 . Utility . | . . . Weapon 2 | . 2 . Highest Loss Streak 4 | . 4 . To Critical Strikes . | . . . Average Backups 6 | 4 7 8 Power 1 | . 1 2 Propulsion 2 | 2 2 4 Utility . | . . 1 Weapon 1 | . 2 1 Tool/Special . | . . . Unused Backups 9 | . 3 6 Power 3 | . 1 2 Propulsion 3 | . 1 2 Utility 1 | . . 1 Weapon 2 | . 1 1 Tool/Special . | . . . Average Slot Usage (%) 98 | . 98 100 Engine 14 | . 14 14 Treads 1 | . 1 . Leg 10 | . 9 28 Wheel 14 | . 15 . Device 14 | . 14 14 Storage 14 | . 14 14 Energy Gun 13 | . 13 14 Ballistic Gun 7 | . 7 . Launcher 6 | . 6 14 Peak Build Rating 9 | 7 9 9 Average Rating 7 | 5 8 9 On Entrance 5 | . 7 9 Avg Prop Armor Cover (%) . | . . . Naked Turns . | . . . Heaviest Build 18 | 15 18 18 Greatest Support 40 | 26 40 20 Greatest Overweight (x) 1 | . 1 . Average Overweight (x) . | . . . Largest Inventory Capacity 8 | 8 8 8 Average Capacity 7 | 7 8 8 Most Carried 8 | 5 8 8 Average Carried 6 | 4 7 8 Final Capacity 8 | 8 8 8 Final Carried 8 | 5 8 8 Class Distribution -------------------- 100% | Mutant Dominant Class ---------------- Mutant | -10/Materials Mutant | -10/Mines Resources | -11 -10 -10 ----------- Run | Yrd Mat Min Matter Collected 439 | 321 108 10 Remotely . | . . . Salvage Created 354 | 100 240 14 Parts 41 | 14 24 3 Haulers Intercepted . | . . . Recyclers Shooed 1 | . 1 . Parts Field Recycled . | . . . Retrieved Matter . | . . . Parts Self-Destructed . | . . . Prevented . | . . . Parts Restored . | . . . Kills | -11 -10 -10 ------- Run | Yrd Mat Min Combat Hostiles Destroyed 8 | . 8 . Guns 5 | . 5 . AOE 3 | . 3 . Classes Destroyed 5 | 1 4 . Worker 1 | . 1 . Tunneler 7 | 5 . 2 Watcher 1 | . 1 . Swarmer 3 | . 3 . Grunt 5 | . 5 . Best Kill Streak 4 | 3 4 2 Combat Bots Only 4 | . 4 . Max Kills in Single Turn 2 | 1 2 1 Gunslinging . | . . . Exploded 2 | . 2 . Melee . | . . . Uniques/NPCs Destroyed . | . . . Combat | -11 -10 -10 -------- Run | Yrd Mat Min Hostile Shots Fired 65 | . 62 3 Missed 21 | . 20 1 Hits 44 | . 42 2 Projectile 44 | . 42 2 AOE 1 | . 1 . Critical Strikes 1 | . 1 . Damage Taken 618 | 3 555 60 Core 253 | 1 229 23 Absorbed by Shields . | . . . Core Remaining (%) 99 | 99 . . Volleys Fired 52 | 19 31 2 Largest 2 | 2 2 2 Hottest 80 | 70 80 80 Shots Fired 96 | 37 55 4 Gun 89 | 37 50 2 Cannon . | . . . Launcher 7 | . 5 2 Special . | . . . Kinetic 41 | 18 23 . Thermal 48 | 19 27 2 Explosive 7 | . 5 2 Electromagnetic . | . . . Robot Hit Streak 12 | 5 12 2 Robot Miss Streak 3 | 3 2 1 Penetration Max . | . . . Secondary Targets . | . . . Shots Hit Robots 47 | 18 27 2 Core Hits 27 | 6 18 3 Critical Kills . | . . . Critical Parts Destroyed . | . . . Critical Strikes 2 | 1 1 . Burn 2 | 1 1 . Melee Attacks . | . . . Impact . | . . . Slashing . | . . . Piercing . | . . . Sneak Attacks . | . . . Combat Hostiles . | . . . Follow-up Attacks . | . . . Damage Inflicted 766 | 244 429 93 Guns 567 | 236 319 12 Cannons . | . . . Explosions 181 | . 100 81 Melee . | . . . Ramming 18 | 8 10 . Kinetic 293 | 148 145 . Thermal 274 | 88 174 12 Explosive 181 | . 100 81 Electromagnetic . | . . . Impact . | . . . Slashing . | . . . Piercing . | . . . Highest Corruption 1 | . 1 1 Average Corruption 1 | . 1 1 Corruption Purged . | . . . Corruption Blocked . | . . . Effects 1 | . . 1 Matter Fused 1 | . . 1 Overload Shots . | . . . Overflow Damage 8 | . 8 . Projectiles . | . . . Explosions 8 | . 8 . Melee . | . . . Knockbacks . | . . . Impact . | . . . Kinetic . | . . . Secondary . | . . . Self-Inflicted Damage 45 | 3 5 37 Shots 1 | . . 1 Rammed 5 | 4 1 . Targets Rammed 5 | 4 1 . Kicked . | . . . Crushed . | . . . Highest Temperature 171 | 63 171 23 Average Temperature 42 | 18 59 14 Received Heat Transfer 141 | . 126 15 Siege Activations . | . . . Martial Activations . | . . . Shielding Activations . | . . . Robots Disrupted . | . . . Combat Hostiles . | . . . Robots Corrupted . | . . . Combat Hostiles . | . . . Parts Fried . | . . . Impact Corruptions . | . . . Robots Melted . | . . . Combat Hostiles . | . . . Parts Melted 1 | 1 . . Heat Transferred 962 | 333 592 37 Parts Sabotaged . | . . . Parts Stolen . | . . . Parts Stripped . | . . . Power Chain Reactions . | . . . Alert | -11 -10 -10 ------- Run | Yrd Mat Min Maximum Alert Level . | . . . Low Security (%) 100 | 100 100 100 Level 1 . | . . . Level 2 . | . . . Level 3 . | . . . Level 4 . | . . . Level 5 . | . . . High Security . | . . . Max Security . | . . . Peak Influence 96 | 10 96 25 Initial . | . . . Average 21 | . 33 5 Influence Increases 271 | 25 221 25 Destroy 0b10 Robot/C 160 | . 160 . Destroy 0b10 Robot/NC 45 | 25 10 10 Destroy Leader 42 | . 42 . Successful Hack 8 | . 8 . Destroy Structure 16 | . 1 15 Influence Decreases 246 | 25 221 . Time Decay 160 | 25 135 . Lost Part 40 | . 40 . Purge Threat 46 | . 46 . Squads Dispatched 2 | . 2 . Investigation 1 | . 1 . Extermination . | . . . Reinforcement 1 | . 1 . Assault . | . . . Garrison . | . . . Intercept . | . . . Searches Triggered . | . . . Construction Impeded . | . . . Haulers Reinforced . | . . . Active Scanning Responses . | . . . Cargo Convoy Interrupts . | . . . Stealth | -11 -10 -10 --------- Run | Yrd Mat Min Distress Signals . | . . . Communications Jammed . | . . . Distress Signals . | . . . Times Spotted 16 | . 14 2 Peak Tracking Total 3 | . 3 2 Tactical Retreats . | . . . Traps | -11 -10 -10 ------- Run | Yrd Mat Min Traps Triggered 1 | . 1 . Indirectly . | . . . Trap Hack Attempts . | . . . Triggered . | . . . Disarmed . | . . . Reprogrammed . | . . . Reused . | . . . Traps Extracted . | . . . Installed . | . . . Triggered . | . . . Machines | -11 -10 -10 ---------- Run | Yrd Mat Min Machines Disabled . | . . . Max in Single Turn . | . . . Machines Repaired . | . . . Machines Dismantled . | . . . Machines Sabotaged . | . . . Overloaded Fab Kills . | . . . Hacking | -11 -10 -10 --------- Run | Yrd Mat Min Machines Accessed 2 | . 2 . Terminals 2 | . 2 . Fabricators . | . . . Repair Stations . | . . . Recycling Units . | . . . Scanalyzers . | . . . Garrison Access . | . . . Total Hacks 6 | . 6 . Successful 2 | . 2 . Failed 4 | . 4 . Catastrophic 1 | . 1 . Database Lockouts . | . . . Manual 6 | . 6 . Terminals 6 | . 6 . Fabricators . | . . . Repair Stations . | . . . Recycling Units . | . . . Scanalyzers . | . . . Garrison Access . | . . . Terminal Hacks 2 | . 2 . Branch Access Points 1 | . 1 . Unreport Threat 1 | . 1 . Fabricator Hacks . | . . . Repair Station Hacks . | . . . Recycling Unit Hacks . | . . . Scanalyzer . | . . . Garrison Access Hacks . | . . . Unauthorized Hacks . | . . . Terminals . | . . . Fabricators . | . . . Repair Stations . | . . . Recycling Units . | . . . Scanalyzers . | . . . Garrison Access . | . . . Data Cores Recovered . | . . . Used . | . . . Hacking Detections 2 | . 2 . Full Trace Events 1 | . 1 . Feedback Events . | . . . Feedback Blocked . | . . . Robot Schematics Acquired . | . . . Robots Built . | . . . Authchips . | . . . Time . | . . . Total Robot Build Rating . | . . . Part Schematics Acquired . | . . . Parts Built . | . . . Authchips . | . . . Time . | . . . Total Part Build Rating . | . . . Part Studies Acquired . | . . . Parts Repaired . | . . . Time . | . . . Parts Recycled . | . . . Recycled Matter . | . . . Retrieved Matter . | . . . Retrieved Components . | . . . Parts Scanalyzed . | . . . Part Schematics Acquired . | . . . Parts Damaged . | . . . Bothacking | -11 -10 -10 ------------ Run | Yrd Mat Min Used RIF Installer . | . . . Robots Hacked . | . . . Non-combat . | . . . Combat . | . . . Robot Hacks Applied . | . . . Relay Couplers Released . | . . . Fabnet Peak Effective % . | . . . Robots Rewired . | . . . Allies Hacked . | . . . Hacks Repelled . | . . . Allies | -11 -10 -10 -------- Run | Yrd Mat Min Total Allies . | . . . Largest Group . | . . . Highest-Rated Group . | . . . Highest-Rated Ally . | . . . Total Orders . | . . . Ally Attacks . | . . . Total Damage . | . . . Kills . | . . . Allies Corrupted . | . . . Allies Melted . | . . . Intel | -11 -10 -10 ------- Run | Yrd Mat Min Active Infowar (turns) 473 | 9 429 35 Seismic 473 | 9 429 35 Robot Analysis Total . | . . . Derelict Logs Recovered . | . . . Drone Launches . | . . . Drone Recoveries . | . . . Exploration | -11 -10 -10 ------------- Run | Yrd Mat Min Turns Passed 685 | 221 429 35 Spaces Moved 473 | 163 285 25 Core 5 | 5 . . Treads 15 | . 15 . Legs 140 | . 115 25 Wheels 313 | 158 155 . Hover . | . . . Flight . | . . . Fastest Speed 50 | 50 90 120 Average Speed 100 | 88 106 120 Slowest Speed 190 | 100 190 120 Overloaded Moves . | . . . Propulsion Burnouts . | . . . Robots Hopped . | . . . Potential Cave-ins . | . . . Cave-ins Triggered . | . . . Exploration Rate (%) 22 | 5 42 20 Regions Visited 2 Branch Regions 1 Pre-discovered Areas . | . . . Known Exits Taken 1 | . 1 . Unknown Exits Taken 1 | 1 . . Scrap Searched . | . . . Spaces Dug . | . . . Terrain Destroyed 19 | . 4 15 Melee . | . . . Projectile . | . . . AOE 19 | . 4 15 Terrain Rammed . | . . . Walls Destroyed . | . . . Machines Disabled . | . . . Actions | -11 -10 -10 --------- Run | Yrd Mat Min Total 583 | 198 358 27 Wait 21 | . 21 . Move 471 | 162 284 25 Hop . | . . . Pick Up 12 | 4 8 . Fast Attach 10 | 8 2 . Attach 4 | . 4 . Detach 3 | 1 2 . Swap 1 | . 1 . Drop 4 | . 4 . Fire 52 | 19 31 2 Melee . | . . . Ram 5 | 4 1 . Kick . | . . . Crush . | . . . Escape Stasis . | . . . Rewire . | . . . Trap . | . . . Miscellaneous . | . . . Route ------- -11/Scrapyard -10/Materials (discovered 3 exits: [*Mat] / *Min / [*Sub]) -10/Mines History --------- Turn | Location | Event 20 | -11/Scrapyard | Discovered new exit (range 15) 222 | -11/Scrapyard | Entered Materials 223 | -10/Materials | Met a group of wandering Federalists 275 | -10/Materials | Discovered new exit (range 7) 303 | -10/Materials | Identified exit to Mines 305 | -10/Materials | Build established: Mutant 450 | -10/Materials | Core integrity fell below 50% 464 | -10/Materials | Core integrity fell below 20% 508 | -10/Materials | Lost 4 parts (2n2w) 603 | -10/Materials | Discovered new exit (range 14) 651 | -10/Materials | Entered Mines 686 | -10/Mines | Destroyed by G-34 Mercenary with Small Laser Last Messages --------------- 00533_ U-05 Engineer lays Concrete. 00533_ R-06 Scavenger collects Machine Analyzer. 00534_ U-05 Engineer lays Concrete. 00534_ Acquired 2 matter. 00535_ U-05 Engineer lays Concrete. 00540_ R-06 Scavenger collects Ion Engine. 00541_ U-05 Engineer lays Concrete. 00583_ Connecting with Terminal... >>Alert(Purge) Purged threat record, alert level lowered. 00603_ EXIT=FOUND 00615_ Triggered Shock Trap. 00615_ The floor emits a surge of raw power. 00615_ System corrupted (+1). LOCATION=MINES GOAL=ESCAPE 00668_ System corrupted: Matter fused (-8). 00672_ T-07 Excavator destroyed. 00675_ Acquired 10 matter. 00684_ T-07 Excavator destroyed. Map ----- +----------------------------------------------------+ | ???????????## ??????????????? | | ??????????## ##?????????????? | | ?????????## ##????????????? | | ????????? ##???????????? | | ?????????? #?????#####?? | | ??????????# #????# ##? | | ???????????# ##??# #? | | ??????????## ### #? | | ?????????## #? | | ?????????# ?? | | ????????## ???? | | ???????## #?????? | | ??????## #?????? | | ??????# ##????? | | ??????# #????? | | ??????## #????? | | ???????## #????? | | ????????## #????? | | ?????????# * ##### ### #????? | | ?????????# ##???# #?## ##????? | | ???????### ###### #???###?????? | | ???????# #???????????? | | ???????# ## ####### #???????????? | | ???????# ####?????# #???????????? | | ???????# ###### #???????????? | | ???????# @ * #???????????? | | ??????# g g| #?????????? | | ?????# ### ????????? | | ????# #???? ?????????? | | ???# ##?????? ?????????? | | ??# ##??????????? ??????????? | | ??# ##???????????????????????? | | ??# #?????????????????????????? | | ??## #??????????????????????????? | | ???###???????????????????????????? | | ?????????????????????????????????? | | ?????????????????????????????????? | | ?????????????????????????????????? | | ?????????????????????????????????? | | ?????????????????????????????????? | | ?????????????????????????????????? | | ?????????????????????????????????? | | ?????????????????????????????????? | | ?????????????????????????????????? | | ?????????????????????????????????? | | ?????????????????????????????????? | | ?????????????????????????????????? | | ?????????????????????????????????? | | ?????????????????????????????????? | | | +----------------------------------------------------+ Best States ------------- Heat Dissipation 25 Energy Generation 12 Energy Capacity 265 Matter Stores 300 Matter Capacity 300 Sight Range 16 Terrain Scan Density 10 Evasion (%) 55 Recoil Reduction 2 Item Schematics ----------------- None Robot Schematics ------------------ None Fabricated ------------ Nothing Repaired ---------- Nothing Studied --------- None Alien Tech Used ----------------- None Achievements -------------- None Challenges ------------ None Game ------ Seed TerrainWeaponNetwork Manual? 0 Play Time 00:07:13 Cumulative 33.8 hours Start 2025.11.01 @ 06:09:26 End 2025.11.01 @ 06:16:28 Sessions 1 Manual Loads 0 Difficulty Rogue Special Mode None Game No. 47 Rogue 24 Adventurer 18 Explorer 5 Win Type - Total 0 Types 0/0/0/0/0/0/0/0/0/0 Lore% 29 Gallery% 40 Achievement% 28 Wizard Run 0 Options --------- Layout 0 ASCII 0 Keyboard 1 Movement Numpad Keybinds 0 Fullscreen 1 Font 18/X11 Map View 76x50 Zoom Use 0% Tactical HUD 1 Map Filters NONE Filters NONE Steam 1 RUN: c73af368-b8e9-44ee-ad7b-704f6bcfa956